bitfinex/quotes_SOLUSD_20240729
["timestamp","ask_amount","ask_price","bid_price","bid_amount"]
[1722294619126,5.4435,183.71,183.64,5.4453]
[1722294619325,20.0,183.7,183.65,5.445]
[1722294619626,25.4437,183.7,183.64,13.6134]
[1722294619836,20.0,183.7,183.63,22.2201]
[1722294620008,20.0,183.75,183.63,22.2201]
[1722294620210,5.4445,183.68,183.63,22.2201]
[1722294620408,13.6078,183.72,183.63,22.2201]
[1722294620621,20.17,183.71,183.63,22.2201]
[1722294621503,25.4436,183.71,183.64,5.4454]
[1722294621710,25.4436,183.71,183.65,1.08870216]
[1722294622023,0.9478461,183.79,183.66,13.6117]
[1722294622328,5.4431,183.72,183.66,13.6117]
[1722294622515,5.4434,183.71,183.66,13.6117]
[1722294624208,5.4433,183.71,183.65,5.4451]
[1722294624711,5.443,183.73,183.65,13.6125]
[1722294624914,20.0,183.72,183.65,13.6125]
[1722294625725,13.6042,183.77,183.68,5.4441]
[1722294626027,0.94775874,183.75,183.69,1.0885485]
[1722294626539,0.94775874,183.75,183.69,6.5324485]
[1722294626720,5.4425,183.74,183.68,5.4442]
[1722294627614,5.4425,183.74,183.66,70.74]
[1722294627615,5.4428,183.73,183.67,5.4445]
[1722294628021,0.94775874,183.75,183.63,47.9601]
[1722294628206,0.94775874,183.75,183.64,45.0]
[1722294628410,0.17,183.74,183.64,13.6133]
[1722294628609,20.17,183.74,183.64,13.6133]
[1722294628829,5.4436,183.7,183.65,5.445]
[1722294629024,5.4436,183.7,183.64,19.0587]
[1722294629707,5.4436,183.7,183.65,5.4451]
[1722294630324,5.4429,183.73,183.67,5.4445]
[1722294630627,20.0,183.74,183.67,13.6111]
[1722294630805,20.0,183.74,183.69,22.5509]
[1722294631305,26.38995874,183.75,183.7,5.4434]
[1722294632242,26.38995874,183.75,183.69,27.9948]
[1722294634130,20.94775874,183.75,183.73,5.4427]
[1722294634332,0.94775874,183.75,183.74,13.19116314]
[1722294634517,13.5966,183.87,183.74,12.1028]
[1722294634833,5.4407,183.8,183.74,12.1028]
[1722294635140,5.4407,183.8,183.75,1.0881736]
[1722294635338,5.4407,183.8,183.74,12.1028]
[1722294635628,13.5991,183.84,183.74,6.6604]
[1722294635833,5.4413,183.78,183.74,6.6604]
[1722294636629,5.441,183.79,183.74,6.6604]
[1722294637024,5.4406,183.81,183.75,1.08823627]
[1722294637226,20.0,183.8,183.75,6.53033627]
[1722294637522,20.0,183.8,183.76,16.6397]
[1722294637728,20.0,183.8,183.77,1.088124]
[1722294638118,5.4401,183.82,183.76,22.0815]
[1722294638319,20.0,183.81,183.76,22.0815]
[1722294638833,25.4404,183.81,183.76,16.6397]
[1722294639331,20.0,183.81,183.77,1.08808799]
[1722294639630,20.0,183.81,183.77,6.52948799]
[1722294639936,6.38778277,183.83,183.77,6.52948799]
[1722294639937,25.4401,183.82,183.77,6.52948799]
[1722294640329,25.4401,183.82,183.77,1.08808799]
[1722294640843,25.4401,183.82,183.76,22.0815]
[1722294641013,5.4408,183.8,183.76,16.6397]
[1722294641215,20.0,183.79,183.76,16.6397]
[1722294641438,5.4414,183.78,183.76,16.6397]
[1722294641810,5.4416,183.77,183.74,6.6604]
[1722294642042,5.4413,183.78,183.74,6.6604]
[1722294642241,5.4409,183.8,183.74,6.6604]
[1722294642428,20.0,183.79,183.74,6.6604]
[1722294642736,20.0,183.82,183.75,14.69356694]
[1722294642941,25.4402,183.82,183.77,5.4415]
[1722294643131,25.4402,183.82,183.78,1.08803192]
[1722294643535,25.4402,183.82,183.76,5.4418]
[1722294643756,5.4404,183.81,183.75,19.0475]
[1722294644425,20.0,183.82,183.76,6.52975391]
[1722294644625,5.4404,183.81,183.76,5.4417]
[1722294645522,0.94798277,183.83,183.78,13.6029]
[1722294645836,5.4389,183.86,183.81,6.4087]
[1722294646036,5.4392,183.85,183.81,6.4087]
[1722294647326,5.4392,183.85,183.82,1.08782843]
[1722294647537,5.4392,183.85,183.81,6.4087]
[1722294650728,5.4389,183.86,183.82,1.08778172]
[1722294650938,20.0,183.85,183.83,1.08776697]
[1722294651134,5.4397,183.84,183.81,6.4087]
[1722294651341,20.0,183.85,183.81,6.4087]
[1722294652823,25.4392,183.85,183.81,6.4087]
[1722294653952,20.0,183.85,183.82,1.08780409]
[1722294654250,20.0,183.86,183.83,1.08778059]
[1722294655190,5.4388,183.87,183.81,11.849]
[1722294655450,6.38575009,183.89,183.82,45.0]
[1722294655629,6.38575009,183.89,183.83,5.4396]
[1722294656235,5.4384,183.88,183.82,45.0]
[1722294656630,20.0,183.87,183.82,45.0]
[1722294656831,25.4387,183.87,183.82,45.0]
[1722294657030,25.4387,183.87,183.81,11.8488]
[1722294657231,5.439,183.86,183.81,11.8488]
[1722294658040,25.4386,183.87,183.81,11.8488]
[1722294659357,5.4386,183.87,183.81,11.8488]
[1722294660853,6.38585009,183.89,183.82,59.6871837]
[1722294661057,6.38585009,183.89,183.83,1.08758677]
[1722294661261,5.4382,183.89,183.83,1.08758677]
[1722294661752,13.5899,183.96,183.86,5.4388]
[1722294662145,5.4374,183.91,183.86,5.4388]
[1722294662338,5.4367,183.94,183.88,11.6653]
[1722294662533,40.7621,184.0,183.88,6.227]
[1722294662952,46.45223916,184.0,183.88,6.227]
[1722294663452,5.438,183.89,183.84,28.3534]
[1722294663653,5.438,183.89,183.84,22.9142]
[1722294664171,5.4377,183.9,183.84,28.3536]
[1722294664371,5.4392,183.85,183.84,22.9142]
[1722294664663,13.7634,183.92,183.84,22.9142]
[1722294664843,20.0,183.91,183.84,22.9142]
[1722294665756,5.4382,183.89,183.84,22.9142]
[1722294666058,25.4376,183.91,183.85,5.4391]
[1722294666261,5.4377,183.9,183.84,28.3536]
[1722294666447,25.438,183.89,183.84,22.9142]
[1722294666848,5.4377,183.9,183.84,28.3537]
[1722294667047,20.0,183.89,183.84,28.3537]
[1722294667443,0.94741055,183.93,183.86,13.5968]
[1722294667853,0.94741055,183.93,183.89,5.438]
[1722294668244,5.4365,183.94,183.89,5.438]
[1722294668746,5.4365,183.94,183.87,5.4383]
[1722294668951,20.0,183.93,183.88,5.4383]
[1722294669260,20.0,183.93,183.8,21.8004]
[1722294669261,5.4392,183.85,183.8,21.8004]
[1722294669566,0.17,183.92,183.82,5.44]
[1722294669773,5.4386,183.88,183.83,5.4397]
[1722294669976,33.7615,183.94,183.83,5.4397]
[1722294670144,5.438,183.89,183.84,5.4395]
[1722294670460,5.4386,183.87,183.82,5.4398]
[1722294670657,5.4386,183.87,183.81,19.041]
[1722294672145,5.4381,183.89,183.81,13.6007]
[1722294672346,20.0,183.88,183.83,5.4398]
[1722294672541,25.4383,183.88,183.83,5.4398]
[1722294674961,20.0,183.88,183.83,5.4398]
[1722294675148,20.0,183.88,183.84,6.52705925]
[1722294675962,0.94723258,183.96,183.84,14.68635925]
[1722294676162,5.4371,183.92,183.86,5.4388]
[1722294676365,5.4375,183.91,183.85,5.4391]
[1722294677047,5.4378,183.9,183.85,5.4391]
[1722294678469,5.4374,183.91,183.85,5.4391]
[1722294678771,20.0,183.9,183.85,5.4391]
[1722294678979,5.4374,183.91,183.85,5.4391]
[1722294679182,20.0,183.9,183.85,5.4391]
[1722294680253,5.4371,183.92,183.87,5.4384]
[1722294680455,5.4365,183.94,183.88,6.52541904]
[1722294680856,5.4365,183.94,183.89,5.4378]
[1722294681169,5.4365,183.94,183.9,1.08736686]
[1722294682259,20.0,183.93,183.89,1.08736713]
[1722294682459,25.4369,183.93,183.9,1.08737054]
[1722294683377,25.4369,183.93,183.89,1.08737077]
[1722294683553,25.4369,183.93,183.9,1.08737072]
[1722294684556,0.94723258,183.96,183.9,1.08737072]
[1722294684762,0.94723258,183.96,183.89,5.4379]
[1722294684967,0.94723258,183.96,183.88,5.4382]
[1722294685359,5.4365,183.95,183.89,5.4378]
[1722294685565,20.0,183.94,183.9,1.08727354]
[1722294687580,25.4366,183.94,183.9,1.08727354]
[1722294689272,25.4366,183.94,183.9,13.88727354]
[1722294691261,25.4366,183.94,183.9,12.8]
[1722294693082,0.94723258,183.96,183.93,12.8]
[1722294693285,0.94723258,183.96,183.89,40.0]
[1722294693286,0.94723258,183.96,183.95,12.8]
[1722294693581,0.7534966,184.01,183.95,12.8]
[1722294693784,0.7534966,184.01,183.96,1.0869976]
[1722294693956,0.7534966,184.01,183.93,19.0285]
[1722294694157,0.7534966,184.01,183.93,26.3918]
[1722294694362,5.4358,183.97,183.93,12.8]
[1722294694594,12.8,184.0,183.89,13.5943]
[1722294694595,12.8,183.96,183.89,12.8]
[1722294694903,20.0,183.95,183.92,12.8]
[1722294695101,20.0,183.95,183.93,12.8]
[1722294695396,5.4349,184.0,183.94,18.2364]
[1722294695567,13.5534966,184.01,183.94,12.8]
[1722294695768,12.8,184.0,183.93,12.8]
[1722294695982,12.8,183.99,183.88,1.08710699]
[1722294696173,5.4359,183.96,183.92,12.8]
[1722294697892,5.4362,183.95,183.9,5.4377]
[1722294698073,5.4359,183.97,183.92,12.8]
[1722294698270,14.49940909,184.01,183.94,12.8]
[1722294698467,20.0,184.0,183.94,12.8]
[1722294698681,25.435,184.0,183.94,12.8]
[1722294698884,5.4351,183.99,183.94,12.8]
[1722294699082,20.0,183.98,183.94,12.8]
[1722294699396,20.0,183.98,183.93,5.4368]
[1722294699569,20.0,183.98,183.93,18.2368]
[1722294699883,20.0,183.98,183.93,5.4368]
[1722294700269,20.0,183.98,183.94,73.3281]
[1722294700488,20.0,183.99,183.94,73.3281]
[1722294701466,25.435,183.99,183.94,67.8917]
[1722294701673,5.4353,183.98,183.94,22.8917]
[1722294702178,5.4358,183.97,183.94,22.8917]
[1722294704583,5.436,183.96,183.94,22.8917]
[1722294705487,5.436,183.96,183.91,12.8]
[1722294705870,5.436,183.96,183.91,18.2374]
[1722294707406,20.0,183.99,183.92,5.4371]
[1722294707697,12.8,183.99,183.92,5.4371]
[1722294707903,20.0,183.98,183.92,5.4371]
[1722294708106,20.0,183.98,183.92,18.2371]
[1722294708479,5.4358,183.97,183.92,12.8]
[1722294708890,5.436,183.96,183.92,12.8]
[1722294709795,25.4356,183.98,183.93,12.8]
[1722294709988,20.0,183.98,183.93,18.2366]
[1722294710998,25.4354,183.98,183.93,12.8]
[1722294711201,20.0,183.98,183.92,12.8]
[1722294711508,32.8,183.98,183.91,26.3929]
[1722294711712,5.4357,183.97,183.91,31.8303]
[1722294711893,5.4357,183.97,183.92,12.8]
[1722294712912,20.0,183.98,183.93,5.4367]
[1722294713109,12.8,183.99,183.93,18.2367]
[1722294713282,20.0,183.98,183.93,5.4367]
[1722294714505,25.4355,183.98,183.93,5.4367]
[1722294715013,5.4372,183.92,183.89,22.0579]
[1722294715220,12.8,183.95,183.89,27.4957]
[1722294715394,5.4359,183.96,183.9,18.2376]
[1722294715595,20.0,183.95,183.9,18.2376]
[1722294715797,25.4363,183.95,183.9,12.8]
[1722294716686,20.0,183.95,183.9,12.8]
[1722294716890,20.0,183.96,183.91,45.0]
[1722294717087,25.4359,183.96,183.91,5.4373]
[1722294717295,20.0,183.96,183.92,13.88716606]
[1722294717495,25.4357,183.97,183.93,1.08716606]
[1722294717697,25.4357,183.97,183.9,5.4375]
[1722294718003,5.436,183.96,183.9,5.4375]
[1722294718403,5.4365,183.94,183.89,35.6526]
[1722294718611,5.4365,183.94,183.89,48.4526]
[1722294720192,5.4371,183.92,183.89,22.0579]
[1722294720397,5.4368,183.94,183.89,34.8579]
[1722294720594,5.4368,183.93,183.89,34.8579]
[1722294721501,5.4371,183.92,183.89,34.8579]
[1722294721702,5.4365,183.94,183.9,1.08738695]
[1722294721904,5.4368,183.93,183.9,1.08738695]
[1722294722090,5.4368,183.93,183.9,13.88738695]
[1722294722291,5.4368,183.93,183.9,1.08738695]
[1722294723211,5.4372,183.92,183.89,22.0579]
[1722294724007,5.4371,183.92,183.89,22.0579]
[1722294724206,12.8,183.93,183.84,22.8308]
[1722294724413,25.4371,183.92,183.86,18.2386]
[1722294724710,25.4371,183.92,183.87,12.8]
[1722294724901,20.0,183.92,183.87,18.2386]
[1722294725104,20.0,183.93,183.87,18.2386]
[1722294725304,25.4371,183.93,183.87,18.2386]
[1722294726108,5.4372,183.92,183.87,18.2386]
[1722294726816,25.4368,183.93,183.87,18.2386]
[1722294727892,5.4372,183.92,183.87,18.2386]
[1722294728591,5.4372,183.92,183.87,12.8]
[1722294728913,5.4372,183.92,183.87,18.2386]
[1722294729703,0.94596177,183.98,183.89,12.8]
[1722294730013,12.8,183.97,183.9,5.4377]
[1722294730196,5.4365,183.95,183.89,19.0323]
[1722294730516,5.4365,183.95,183.9,5.4377]
[1722294733002,5.4365,183.95,183.89,31.8323]
[1722294734509,12.8,183.95,183.86,1.08723074]
[1722294734707,12.8,183.91,183.84,22.8308]
[1722294735013,18.2371,183.92,183.86,12.8]
[1722294735207,18.2368,183.93,183.87,5.4385]
[1722294735406,20.0,183.92,183.87,5.4385]
[1722294735904,25.4372,183.92,183.87,18.2385]
[1722294736895,26.38329383,183.92,183.87,18.2385]
[1722294738311,0.94609383,183.92,183.87,18.2385]
[1722294738815,25.437,183.93,183.87,18.2385]
[1722294738996,5.4372,183.92,183.87,18.2385]
[1722294739191,12.8,183.9,183.84,22.8308]
[1722294739424,5.4387,183.87,183.84,22.8308]
[1722294739603,5.4383,183.88,183.84,22.8308]
[1722294739803,13.5902,183.96,183.87,12.8]
[1722294740117,6.38228191,183.95,183.89,5.4379]
[1722294740429,13.74608191,183.95,183.89,5.4379]
[1722294741110,0.94608191,183.95,183.9,5.4377]
[1722294741430,5.4363,183.95,183.89,5.4379]
[1722294741618,20.0,183.94,183.89,5.4379]
[1722294742202,20.0,183.94,183.9,5.4376]
[1722294742511,20.0,183.94,183.89,19.033]
[1722294742698,5.4363,183.95,183.89,19.033]
[1722294742898,20.0,183.94,183.89,19.033]
[1722294743313,25.4366,183.94,183.89,13.595]
[1722294745277,12.8,183.9,183.84,22.8308]
[1722294745400,20.0,183.94,183.84,35.6308]
[1722294745401,12.8,183.91,183.84,35.6308]
[1722294745712,20.0,183.9,183.86,18.2388]
[1722294746103,20.0,183.9,183.87,5.4386]
[1722294746302,25.4371,183.92,183.86,12.8]
[1722294746540,25.4371,183.92,183.86,18.2388]
[1722294746745,25.4371,183.92,183.87,12.8]
[1722294746906,20.0,183.92,183.87,18.2385]
[1722294747236,20.0,183.93,183.88,45.0]
[1722294747533,20.0,183.93,183.89,5.4379]
[1722294748231,12.8,183.96,183.9,5.4377]
[1722294748435,38.2363,183.95,183.89,5.438]
[1722294748923,25.4363,183.95,183.89,5.438]
[1722294749452,5.4366,183.94,183.89,5.438]
[1722294750449,5.4366,183.94,183.88,63.2383]
[1722294751025,5.4366,183.94,183.89,5.4379]
[1722294751340,25.4362,183.95,183.89,18.2379]
[1722294751729,25.4362,183.95,183.9,5.4376]
[1722294751919,6.38184853,183.97,183.92,5.437]
[1722294752121,0.94614853,183.97,183.92,12.8]
[1722294752347,12.8,183.99,183.92,12.8]
[1722294752546,12.8,183.97,183.9,35.0592]
[1722294752854,0.94591893,183.98,183.9,21.4652]
[1722294752855,5.4365,183.94,183.9,21.4652]
[1722294753145,5.4369,183.93,183.9,21.4652]
[1722294754352,25.4372,183.92,183.88,45.0]
[1722294754732,5.4376,183.91,183.87,6.61]
[1722294755259,5.4383,183.88,183.87,6.61]
[1722294755452,20.0,183.92,183.87,19.41]
[1722294755624,5.4376,183.91,183.87,19.41]
[1722294755820,20.0,183.9,183.87,19.41]
[1722294756278,12.8,183.88,183.77,20.0]
[1722294756431,5.4388,183.87,183.81,18.2403]
[1722294756639,5.4389,183.86,183.81,31.8409]
[1722294756959,20.0,183.85,183.81,31.8409]
[1722294757345,20.0,183.85,183.81,26.4006]
[1722294757538,20.0,183.85,183.81,13.6006]
[1722294760283,5.4396,183.84,183.79,5.4409]
[1722294760456,20.0,183.85,183.75,12.8]
[1722294760457,12.8,183.81,183.75,12.8]
[1722294760665,12.8,183.87,183.74,16.6159]
[1722294760666,12.8,183.79,183.74,16.6159]
[1722294760856,18.2416,183.77,183.74,16.6159]
[1722294761061,5.4419,183.76,183.74,16.6159]
[1722294761263,5.4419,183.76,183.73,6.293]
[1722294761468,18.2419,183.76,183.73,6.293]
[1722294761953,18.2416,183.77,183.73,6.293]
[1722294762152,20.0,183.76,183.73,6.293]
[1722294762673,25.4419,183.76,183.73,6.293]
[1722294763273,5.4423,183.75,183.69,28.2929]
[1722294765044,5.4428,183.73,183.69,22.8491]
[1722294765247,5.4424,183.74,183.69,22.8491]
[1722294765541,5.4433,183.72,183.69,22.8491]
[1722294765747,20.0,183.77,183.69,6.1961]
[1722294765962,5.443,183.73,183.69,6.1961]
[1722294766266,5.443,183.73,183.67,5.4444]
[1722294766267,20.0,183.72,183.67,5.4444]
[1722294767653,20.0,183.72,183.66,13.612]
[1722294767853,20.0,183.77,183.67,45.0]
[1722294768070,5.4425,183.74,183.68,5.444]
[1722294768271,20.0,183.73,183.68,5.444]
[1722294769349,25.4428,183.73,183.68,5.444]
[1722294769546,5.4431,183.72,183.65,43.0941]
[1722294769747,20.0,183.71,183.67,5.4445]
[1722294770152,20.0,183.71,183.68,5.4442]
[1722294770366,20.0,183.72,183.68,5.4442]
[1722294772152,20.0,183.72,183.67,5.4445]
[1722294772569,20.0,183.72,183.66,45.0]
[1722294772762,5.4433,183.72,183.66,50.4447]
[1722294772962,20.0,183.71,183.66,50.4447]
[1722294773164,20.0,183.71,183.66,49.9447]
[1722294774173,20.0,183.71,183.67,5.4445]
[1722294774555,20.0,183.71,183.65,23.0941]
[1722294774768,5.4439,183.69,183.65,23.0941]
[1722294774965,20.0,183.74,183.65,23.0941]
[1722294775262,5.4445,183.67,183.65,23.0941]
[1722294775476,5.4442,183.69,183.65,23.0941]
[1722294775680,20.0,183.68,183.65,23.0941]
[1722294777568,5.444,183.69,183.65,23.0941]
[1722294777773,20.0,183.68,183.65,23.0941]
[1722294781771,20.0,183.68,183.67,5.4445]
[1722294781968,20.0,183.68,183.65,23.0941]
[1722294782282,20.0,183.68,183.66,5.4447]
[1722294782987,5.4427,183.73,183.67,19.0558]
[1722294783359,5.4424,183.74,183.68,1.08853124]
[1722294783558,6.38933458,183.75,183.69,19.0528]
[1722294783975,6.38933458,183.75,183.7,5.4435]
[1722294784878,20.0,183.74,183.7,5.4435]
[1722294785181,20.0,183.74,183.69,13.6091]
[1722294785365,32.83,183.74,183.69,13.6091]
[1722294786167,12.83,183.73,183.67,5.4445]
[1722294786585,25.4433,183.72,183.66,18.2748]
[1722294786777,25.4433,183.72,183.67,45.0]
[1722294787082,38.2733,183.72,183.67,45.0]
[1722294787288,5.4433,183.71,183.66,5.4448]
[1722294788261,12.83,183.71,183.65,6.4442]
[1722294788462,12.83,183.67,183.61,49.9289]
[1722294788673,13.6089,183.71,183.62,5.4459]
[1722294788985,12.83,183.67,183.62,5.4459]
[1722294789190,12.83,183.67,183.63,5.4457]
[1722294789863,20.0,183.72,183.62,12.83]
[1722294790066,12.83,183.7,183.64,5.4452]
[1722294790263,12.83,183.68,183.61,29.9289]
[1722294790505,20.0,183.67,183.62,45.0]
[1722294790866,18.2752,183.65,183.61,16.3136]
[1722294791197,12.83,183.65,183.6,6.2099]
[1722294791379,20.0,183.67,183.6,19.0399]
[1722294791586,20.0,183.67,183.64,12.83]
[1722294792068,15.7032,183.73,183.68,13.6105]
[1722294792268,5.4436,183.71,183.65,12.83]
[1722294792769,20.0,183.7,183.66,12.83]
[1722294793106,20.0,183.7,183.66,18.2748]
[1722294793305,20.0,183.71,183.66,18.2748]
[1722294793503,5.4427,183.74,183.67,12.83]
[1722294793706,12.83,183.75,183.68,13.91861079]
[1722294793999,12.83,183.75,183.68,12.83]
[1722294794786,5.4427,183.73,183.68,12.83]
[1722294794999,20.0,183.72,183.68,12.83]
[1722294795798,20.0,183.73,183.68,18.2742]
[1722294796500,20.0,183.73,183.7,5.4435]
[1722294796690,12.83,183.76,183.7,5.4435]
[1722294797001,20.0,183.75,183.7,5.4435]
[1722294797591,20.0,183.75,183.69,18.2739]
[1722294797907,20.0,183.75,183.71,12.83]
[1722294798198,5.4422,183.75,183.71,12.83]
[1722294798390,20.0,183.74,183.71,12.83]
[1722294798907,5.4449,183.66,183.64,15.0023]
[1722294799076,12.83,183.69,183.64,15.0023]
[1722294799279,20.0,183.68,183.65,18.2749]
[1722294799507,20.0,183.68,183.66,12.83]
[1722294799683,0.94571399,183.73,183.67,5.4443]
[1722294799871,6.38871399,183.73,183.66,19.0562]
[1722294800077,20.0,183.72,183.66,19.0562]
[1722294800289,20.0,183.72,183.64,15.0023]
[1722294800495,20.0,183.72,183.65,14.70097986]
[1722294800907,20.0,183.72,183.69,12.83]
[1722294801088,0.94571399,183.73,183.68,12.83]
[1722294801605,13.77571399,183.73,183.66,18.2748]
[1722294801921,20.0,183.72,183.67,12.83]
[1722294802108,25.4431,183.72,183.67,12.83]
[1722294802588,20.0,183.72,183.67,12.83]
[1722294802910,0.94571399,183.73,183.67,12.83]
[1722294802911,20.94571399,183.73,183.67,12.83]
[1722294803098,26.38851399,183.73,183.67,18.2745]
[1722294803296,5.4437,183.7,183.65,13.91855142]
[1722294803491,12.83,183.72,183.66,1.08867116]
[1722294803691,20.0,183.71,183.66,13.91867116]
[1722294803895,20.0,183.71,183.67,12.83]
[1722294804213,20.0,183.71,183.69,5.4438]
[1722294804409,20.94571399,183.73,183.67,5.4443]
[1722294804622,15.7032,183.81,183.68,21.08853121]
[1722294804912,0.94558184,183.81,183.74,5.4424]
[1722294805135,15.7032,183.86,183.72,16.0501]
[1722294805413,5.441,183.79,183.72,16.0501]
[1722294805594,12.83,183.79,183.72,16.0501]
[1722294805800,5.4415,183.78,183.73,12.83]
[1722294806115,5.4413,183.78,183.73,12.83]
[1722294806323,20.0,183.77,183.74,12.83]
[1722294806693,20.0,183.79,183.74,12.83]
[1722294807214,25.441,183.79,183.74,12.83]
[1722294808212,5.4421,183.76,183.72,28.8801]
[1722294808697,5.4415,183.78,183.72,28.8801]
[1722294809013,20.0,183.77,183.73,12.83]
[1722294809227,20.0,183.77,183.74,12.83]
[1722294809524,20.0,183.79,183.75,12.83]
[1722294809704,25.441,183.79,183.73,18.2727]
[1722294809906,25.441,183.79,183.74,12.83]
[1722294811298,20.0,183.79,183.73,12.83]
[1722294811499,5.4418,183.77,183.72,16.0501]
[1722294811717,5.4418,183.77,183.72,28.8801]
[1722294812038,32.83,183.79,183.67,22.421]
[1722294812039,12.83,183.75,183.67,22.421]
[1722294812343,13.6036,183.78,183.62,16.3065]
[1722294812344,5.4456,183.64,183.62,16.3065]
[1722294812495,18.2743,183.68,183.62,21.7524]
[1722294812803,20.0,183.67,183.61,18.9445]
[1722294813002,5.4452,183.65,183.61,6.1145]
[1722294813202,20.0,183.64,183.58,16.6099]
[1722294813400,20.0,183.64,183.58,16.1099]
[1722294813717,20.0,183.64,183.59,13.6172]
[1722294813925,20.0,183.69,183.6,1.08909285]
[1722294814094,20.0,183.69,183.63,13.6142]
[1722294814419,20.0,183.73,183.6,5.4465]
[1722294814623,5.444,183.69,183.61,5.4461]
[1722294814936,20.0,183.68,183.61,21.08892614]
[1722294815217,5.4431,183.72,183.64,5.4452]
[1722294815419,20.0,183.71,183.64,5.4452]
[1722294816009,20.0,183.71,183.65,5.445]
[1722294816497,5.4447,183.67,183.6,5.4465]
[1722294816893,20.0,183.66,183.6,5.4465]
[1722294817204,20.0,183.66,183.59,33.6172]
[1722294817411,20.0,183.76,183.6,45.0]
[1722294817600,25.85,183.75,183.6,45.0]
[1722294817927,65.0,183.74,183.6,45.0]
[1722294818222,65.0,183.74,183.58,16.1099]
[1722294818223,5.445,183.66,183.58,16.1099]
[1722294818394,5.4445,183.68,183.58,16.1099]
[1722294818714,20.0,183.67,183.61,5.4462]
[1722294818895,20.0,183.67,183.61,13.6152]
[1722294819400,5.4437,183.7,183.6,25.68]
[1722294819606,25.444,183.69,183.62,5.4459]
[1722294819815,20.0,183.68,183.64,13.613]
[1722294820119,33.6074,183.73,183.6,13.6164]
[1722294820298,33.6074,183.73,183.61,45.0]
[1722294821599,5.4436,183.71,183.63,5.4455]
[1722294821800,20.0,183.7,183.63,1.08880176]
[1722294822121,20.0,183.7,183.61,45.0]
[1722294822122,25.4438,183.7,183.61,45.0]
[1722294822308,25.4438,183.7,183.6,45.0]
[1722294822703,5.444,183.69,183.63,5.4457]
[1722294822899,20.0,183.68,183.61,5.446]
[1722294823113,20.0,183.68,183.59,19.0639]
[1722294823617,20.0,183.69,183.59,19.0639]
[1722294823818,48.3241,183.68,183.55,13.6199]
[1722294824319,13.617,183.6,183.48,6.2121]
[1722294824518,5.4471,183.59,183.51,5.4492]
[1722294824703,5.4471,183.59,183.48,6.2121]
[1722294824704,20.0,183.58,183.56,5.4476]
[1722294824902,20.0,183.58,183.56,5.4475]
[1722294825100,20.0,183.58,183.54,13.6208]
[1722294825298,5.4468,183.6,183.49,13.6241]
[1722294825510,5.4468,183.6,183.54,5.4483]
[1722294825511,20.0,183.59,183.54,5.4483]
[1722294825897,20.0,183.59,183.49,13.6241]
[1722294826124,20.0,183.62,183.52,5.4489]
[1722294826306,45.17,183.61,183.53,5.4486]
[1722294826510,5.4466,183.6,183.53,5.4486]
[1722294826708,20.0,183.59,183.57,5.4474]
[1722294826904,15.9565,183.66,183.51,21.08933847]